fUST/lending_fUST_20260219
["ID","MTS","AMOUNT","RATE_DAILY","PERIOD"]
[405995183,1771513845363,-2000.0,0.00030137,2]
[405995184,1771513845372,-2000.0,0.00030137,2]
[405995185,1771513845382,-2000.0,0.00030137,2]
[405995186,1771513845391,-2000.0,0.00030137,2]
[405995187,1771513845400,-2000.0,0.00030137,2]
[405995188,1771513845410,-2000.0,0.00030137,2]
[405995189,1771513845419,-2000.0,0.00030137,2]
[405995190,1771513845429,-1352.77458295,0.00030137,2]
[405995191,1771513845438,-1447.4076306,0.00030166,14]
[405995192,1771513845447,-500.0,0.00030182,10]
[405995193,1771513845456,-442.76,0.0003022,25]
[405995194,1771513845465,-200.89289146,0.0003022,25]
[405995195,1771513845475,-427.0,0.00030572,2]
[405995196,1771513845484,-427.0,0.00030572,2]
[405995197,1771513845493,-725.0,0.00030572,2]
[405995198,1771513845503,-181.0,0.00030572,2]
[405995199,1771513845512,-201.71575109,0.00030617,110]
[405995200,1771513845521,-270.23195739,0.00030617,110]
[405995201,1771513845531,-551.48507197,0.00030769,2]
[405995202,1771513845540,-1509.15,0.000309,30]
[405995203,1771513845549,-714.0,0.00030956,3]
[405995204,1771513845559,-242.36624254,0.00031068,44]
[405995205,1771513845568,-166.37,0.000311,7]
[405995206,1771513845579,-714.0,0.00031189,3]
[405995207,1771513845588,-284.06,0.000312,7]
[405995208,1771513845598,-161.0,0.00031276,3]
[405995209,1771513845607,-393.0,0.00031339,3]
[405995210,1771513845616,-1476.23891128,0.00031356,14]
[405995211,1771513845626,-151.0,0.00031457,2]
[405995212,1771513845635,-151.0,0.00031457,2]
[405995213,1771513845645,-151.0,0.00031457,2]
[405995216,1771513845654,-250.0,0.00031457,2]
[405995217,1771513845663,-250.0,0.00031457,2]
[405995219,1771513845673,-500.0,0.00031457,2]
[405995221,1771513845683,-250.0,0.00031457,2]
[405995222,1771513845692,-500.0,0.00031457,2]
[405995223,1771513845701,-250.0,0.00031457,2]
[405995224,1771513845791,-250.0,0.00031457,2]
[405995225,1771513845801,-500.0,0.00031457,2]
[405995226,1771513845812,-250.0,0.00031457,2]
[405995227,1771513845822,-250.0,0.00031457,2]
[405995228,1771513845833,-250.0,0.00031457,2]
[405995229,1771513845843,-500.0,0.00031457,2]
[405995230,1771513845853,-250.0,0.00031457,2]
[405995231,1771513845862,-500.0,0.00031457,2]
[405995232,1771513845872,-250.0,0.00031457,2]
[405995233,1771513845881,-181.08010149,0.00031457,2]
[405995234,1771513845890,-250.0,0.00031457,2]
[405995235,1771513845899,-500.0,0.00031457,2]
[405995236,1771513845908,-250.0,0.00031457,2]
[405995237,1771513845918,-250.0,0.00031457,2]
[405995238,1771513845927,-187.78006525,0.00031457,2]
[405995239,1771513845936,-250.0,0.00031457,2]
[405995240,1771513845945,-500.0,0.00031457,2]
[405995241,1771513845955,-194.72792766,0.00031457,2]
[405995242,1771513845964,-250.0,0.00031457,2]
[405995243,1771513845973,-151.0,0.00031457,2]
[405995244,1771513845983,-250.0,0.00031457,2]
[405995245,1771513845992,-250.0,0.00031457,2]
[405995246,1771513846001,-500.0,0.00031457,2]
[405995247,1771513846010,-201.93286099,0.00031457,2]
[405995248,1771513846019,-250.0,0.00031457,2]
[405995249,1771513846028,-151.0,0.00031457,2]
[405995250,1771513846037,-250.0,0.00031457,2]
[405995251,1771513846046,-250.0,0.00031457,2]
[405995252,1771513846056,-500.0,0.00031457,2]
[405995253,1771513846066,-209.40437684,0.00031457,2]
[405995254,1771513846076,-250.0,0.00031457,2]
[405995255,1771513846086,-151.0,0.00031457,2]
[405995256,1771513846095,-250.0,0.00031457,2]
[405995257,1771513846104,-250.0,0.00031457,2]
[405995258,1771513846113,-500.0,0.00031457,2]
[405995259,1771513846123,-750.0,0.00031457,2]
[405995260,1771513846132,-250.0,0.00031457,2]
[405995261,1771513846141,-250.0,0.00031457,2]
[405995262,1771513846151,-250.0,0.00031457,2]
[405995263,1771513846160,-500.0,0.00031457,2]
[405995264,1771513846170,-217.15233878,0.00031457,2]
[405995265,1771513846179,-750.0,0.00031457,2]
[405995266,1771513846188,-250.0,0.00031457,2]
[405995267,1771513846197,-250.0,0.00031457,2]
[405995268,1771513846206,-250.0,0.00031457,2]
[405995269,1771513846215,-1957.856,0.00031457,2]
[405995270,1771513846225,-500.0,0.00031457,2]
[405995271,1771513846236,-225.18697532,0.00031457,2]
[405995272,1771513846245,-750.0,0.00031457,2]
[405995273,1771513846254,-250.0,0.00031457,2]
[405995274,1771513846263,-250.0,0.00031457,2]
[405995275,1771513846272,-280.94425943,0.00031457,2]
[405995276,1771513846281,-500.0,0.00031457,2]
[405995277,1771513846290,-760.82039511,0.00031457,2]
[405995278,1771513846299,-250.0,0.00031457,2]
[405995279,1771513846309,-250.0,0.00031457,2]
[405995280,1771513846318,-233.51889341,0.00031457,2]
[405995281,1771513846329,-500.0,0.00031457,2]
[405995282,1771513846339,-250.0,0.00031457,2]
[405995283,1771513846348,-242.15909246,0.00031457,2]
[405995284,1771513846361,-250.0,0.00031457,2]
[405995285,1771513846371,-500.0,0.00031457,2]
[405995286,1771513846380,-250.0,0.00031457,2]
[405995287,1771513846390,-250.0,0.00031457,2]
[405995288,1771513846402,-251.11897888,0.00031457,2]
[405995289,1771513846412,-187.35283018,0.00031457,2]
[405995290,1771513846422,-250.0,0.00031457,2]
[405995291,1771513846432,-250.0,0.00031457,2]
[405995292,1771513846441,-260.4103811,0.00031457,2]
[405995293,1771513846451,-250.0,0.00031457,2]
[405995294,1771513846461,-250.0,0.00031457,2]
[405995295,1771513846470,-270.0455652,0.00031457,2]
[405995296,1771513846480,-250.0,0.00031457,2]
[405995297,1771513846489,-250.0,0.00031457,2]
[405995298,1771513846499,-280.03725112,0.00031457,2]
[405995299,1771513846508,-250.0,0.00031457,2]
[405995300,1771513846518,-250.0,0.00031457,2]
[405995301,1771513846528,-290.39862941,0.00031457,2]
[405995302,1771513846537,-250.0,0.00031457,2]
[405995303,1771513846547,-250.0,0.00031457,2]
[405995304,1771513846556,-301.1433787,0.00031457,2]
[405995305,1771513846566,-250.0,0.00031457,2]
[405995306,1771513846576,-250.0,0.00031457,2]
[405995307,1771513846586,-250.0,0.00031457,2]
[405995308,1771513846595,-250.0,0.00031457,2]
[405995309,1771513846606,-250.0,0.00031457,2]
[405995310,1771513846616,-250.0,0.00031457,2]
[405995311,1771513846625,-250.0,0.00031457,2]
[405995312,1771513846635,-250.0,0.00031457,2]
[405995313,1771513846645,-250.0,0.00031457,2]
[405995314,1771513846654,-250.0,0.00031457,2]
[405995315,1771513846664,-250.0,0.00031457,2]
[405995316,1771513846674,-250.0,0.00031457,2]
[405995317,1771513846683,-250.0,0.00031457,2]
[405995318,1771513846693,-250.0,0.00031457,2]
[405995319,1771513846702,-250.0,0.00031457,2]
[405995320,1771513846711,-250.0,0.00031457,2]
[405995321,1771513846721,-250.0,0.00031457,2]
[405995323,1771513846730,-250.0,0.00031457,2]
[405995325,1771513846740,-250.0,0.00031457,2]
[405995326,1771513846750,-250.0,0.00031457,2]
[405995327,1771513846760,-250.0,0.00031457,2]
[405995328,1771513846770,-250.0,0.00031457,2]
[405995329,1771513846779,-250.0,0.00031457,2]
[405995330,1771513846790,-250.0,0.00031457,2]
[405995331,1771513846799,-250.0,0.00031457,2]
[405995332,1771513846809,-250.0,0.00031457,2]
[405995333,1771513846819,-250.0,0.00031457,2]
[405995334,1771513846829,-250.0,0.00031457,2]
[405995335,1771513846839,-250.0,0.00031457,2]
[405995336,1771513846850,-250.0,0.00031457,2]
[405995337,1771513846860,-250.0,0.00031457,2]
[405995338,1771513846870,-250.0,0.00031457,2]
[405995339,1771513846880,-250.0,0.00031457,2]
[405995340,1771513846890,-250.0,0.00031457,2]
[405995341,1771513846900,-250.0,0.00031457,2]
[405995342,1771513846909,-250.0,0.00031457,2]
[405995343,1771513846919,-250.0,0.00031457,2]
[405995344,1771513846928,-250.0,0.00031457,2]
[405995345,1771513846938,-250.0,0.00031457,2]
[405995346,1771513846948,-250.0,0.00031457,2]
[405995347,1771513846957,-250.0,0.00031457,2]
[405995348,1771513846967,-250.0,0.00031457,2]
[405995349,1771513846977,-2030.296672,0.00031512,2]
[405995350,1771513846986,-2105.41764886,0.00031567,2]
[405995351,1771513846996,-2183.31810187,0.00031622,2]
[405995352,1771513847007,-2264.10087164,0.00031677,2]
[405995353,1771513847017,-2347.87260389,0.00031732,2]
[405995354,1771513847027,-2434.74389024,0.00031787,2]
[405995355,1771513847036,-1509.15,0.000318,30]
[405995356,1771513847046,-1721.49615152,0.00031842,2]
[405995357,1771513847055,-500.0,0.0003187,5]
[405995358,1771513847066,-512.83911223,0.0003187,5]
[405995359,1771513847076,-3277.49,0.000321,2]
[405995360,1771513847085,-161.36555838,0.00032214,10]
[405995361,1771513847095,-867.2397,0.0003222,30]
[405995362,1771513847105,-151.0,0.00032267,32]
[405995363,1771513847115,-1591.564034,0.00032545,14]
[405995364,1771513847124,-166.0,0.00032622,14]
[405995365,1771513847135,-1509.15,0.000327,120]
[405995366,1771513847144,-200.0,0.00032726,34]
[405995367,1771513847154,-589.37335936,0.00032769,2]
[405995368,1771513847163,-284.06,0.000328,7]
[405995369,1771513847173,-593.0,0.00032805,11]
[405995370,1771513847182,-1000.0,0.00032876,120]
[405995371,1771513847191,-500.0,0.00032876,19]
[405995372,1771513847201,-536.08507665,0.00032876,19]
[405995373,1771513847211,-151.0,0.00032876,19]
[405995374,1771513847221,-187.91757559,0.00032876,19]
[405995375,1771513847231,-500.0,0.00032876,19]
[405995376,1771513847240,-500.0,0.00032876,19]
[405995377,1771513847250,-562.46893969,0.00032876,19]
[405995378,1771513847260,-739.72,0.00032876,19]
[405995379,1771513847270,-157.47249558,0.00032876,19]
[405995380,1771513847279,-632.47309783,0.00032876,19]
[405995381,1771513847289,-484.64099578,0.00032876,19]
[405995382,1771513847299,-545.05641351,0.00032876,19]
[405995383,1771513847309,-248.0670676,0.00032876,19]
[405995384,1771513847318,-500.0,0.00032876,19]
[405995385,1771513847329,-500.0,0.00032876,19]
[405995386,1771513847339,-500.0,0.00032876,19]
[405995387,1771513847349,-500.0,0.00032876,19]
[405995388,1771513847361,-500.0,0.00032876,19]
[405995389,1771513847371,-500.0,0.00032876,19]
[405995390,1771513847380,-500.0,0.00032876,19]
[405995391,1771513847391,-500.0,0.00032876,19]
[405995392,1771513847401,-502.54219966,0.00032876,7]
[405995393,1771513847410,-500.0,0.00032876,19]
[405995394,1771513847421,-500.0,0.00032876,19]
[405995395,1771513847431,-500.0,0.00032876,19]
[405995396,1771513847440,-617.43,0.00032876,19]
[405995397,1771513847450,-527.12641658,0.00032876,19]
[405995398,1771513847460,-1590.52,0.00032876,19]
[405995399,1771513847470,-500.0,0.00032876,19]
[405995400,1771513847480,-411.16146971,0.00032876,7]
[405995401,1771513847489,-501.95489185,0.00032876,19]
[405995402,1771513847498,-450.0,0.00032876,19]
[405995403,1771513847508,-500.0,0.00032876,19]
[405995404,1771513847517,-151.0,0.00032876,19]
[405995405,1771513847527,-500.0,0.00032876,19]
[405995406,1771513847617,-368.56466652,0.00032876,19]
[405995407,1771513847628,-207.09326476,0.00032876,7]
[405995408,1771513847638,-538.97626855,0.00032876,19]
[405995409,1771513847647,-500.0,0.00032876,19]
[405995410,1771513847656,-500.0,0.00032876,19]
[405995411,1771513847666,-500.0,0.00032876,12]
[405995412,1771513847675,-458.89348903,0.00032876,19]
[405995413,1771513847684,-500.0,0.00032876,19]
[405995414,1771513847694,-500.0,0.00032876,19]
[405995415,1771513847703,-550.04731677,0.00032876,19]
[405995416,1771513847713,-500.0,0.00032876,7]
[405995417,1771513847722,-500.0,0.00032876,19]
[405995418,1771513847732,-500.0,0.00032876,19]
[405995419,1771513847742,-500.0,0.00032876,19]
[405995420,1771513847752,-500.0,0.00032876,19]
[405995421,1771513847762,-441.531638,0.00032876,19]
[405995422,1771513847771,-500.0,0.00032876,19]
[405995423,1771513847780,-501.53274848,0.00032876,8]
[405995424,1771513847790,-1002.09277717,0.00032876,2]
[405995425,1771513847811,-500.0,0.00032876,19]
[405995426,1771513847821,-204.40775593,0.00032876,7]
[405995427,1771513847832,-500.14869981,0.00032876,19]
[405995428,1771513847843,-500.0,0.00032876,19]
[405995429,1771513847854,-500.0,0.00032876,19]
[405995430,1771513847865,-336.95071368,0.00032876,19]
[405995431,1771513847875,-500.0,0.00032876,19]
[405995432,1771513847886,-1630.26,0.00032876,7]
[405995433,1771513847896,-563.94292252,0.00032876,19]
[405995434,1771513847906,-500.0,0.00032876,19]
[405995435,1771513847916,-500.0,0.00032876,19]
[405995436,1771513847927,-519.75129367,0.00032876,19]
[405995437,1771513847938,-532.0995407,0.00032876,19]
[405995438,1771513847948,-251.15059949,0.00032876,19]
[405995439,1771513847959,-197.04806589,0.00032876,19]
[405995440,1771513847968,-519.77084062,0.00032876,19]
[405995441,1771513847979,-500.0,0.00032876,19]
[405995442,1771513847988,-523.41799496,0.00032876,19]
[405995443,1771513847999,-527.47534523,0.00032876,19]
[405995444,1771513848009,-524.91930703,0.00032876,19]
[405995445,1771513848019,-24584.14,0.00032876,19]
[405995446,1771513848028,-500.0,0.00032876,19]
[405995447,1771513848037,-534.35045002,0.00032876,19]
[405995448,1771513848048,-202.81061723,0.00032876,19]
[405995449,1771513848057,-482.67704877,0.00032876,19]
[405995450,1771513848067,-570.097403,0.00032876,19]
[405995451,1771513848078,-500.0,0.00032876,19]
[405995452,1771513848088,-500.0,0.00032876,19]
[405995453,1771513848098,-531.51569948,0.00032876,19]
[405995454,1771513848108,-631.39647009,0.00032876,19]
[405995455,1771513848118,-511.87080612,0.00032876,19]
[405995456,1771513848127,-1543.16,0.00032876,19]
[405995457,1771513848137,-413.42559821,0.00032876,19]
[405995458,1771513848149,-503.30160772,0.00032876,19]
[405995459,1771513848159,-500.0,0.00032876,19]
[405995460,1771513848169,-580.3474443,0.00032876,19]
[405995461,1771513848179,-547.59325317,0.00032876,19]
[405995462,1771513848189,-532.61439491,0.00032876,19]
[405995463,1771513848198,-514.26760076,0.00032876,19]
[405995464,1771513848208,-560.56,0.00032876,19]
[405995465,1771513848220,-264.62135381,0.00032876,19]
[405995466,1771513848231,-500.0,0.00032876,19]
[405995467,1771513848241,-577.24999916,0.00032876,19]
[405995468,1771513848250,-500.0,0.00032876,19]
[405995469,1771513848262,-533.84999164,0.00032876,19]
[405995470,1771513848272,-725.24,0.00032876,19]
[405995471,1771513848282,-519.56730785,0.00032876,19]
[405995472,1771513848292,-500.0,0.00032876,19]
[405995473,1771513848301,-500.0,0.00032876,19]
[405995474,1771513848310,-500.0,0.00032876,19]
[405995475,1771513848320,-510.55991973,0.00032876,19]
[405995476,1771513848330,-170.00041135,0.00032876,19]
[405995477,1771513848340,-500.0,0.00032876,19]
[405995478,1771513848353,-500.0,0.00032876,19]
[405995479,1771513848362,-176.11238821,0.00032876,19]
[405995480,1771513848371,-500.0,0.00032876,19]
[405995481,1771513848381,-175.45738321,0.00032876,19]
[405995482,1771513848391,-154.84277331,0.00032876,19]
[405995483,1771513848405,-500.0,0.00032876,19]
[405995484,1771513848415,-500.0,0.00032876,19]
[405995485,1771513848426,-500.0,0.00032876,19]
[405995486,1771513848435,-500.0,0.00032876,19]
[405995487,1771513848445,-306.98877753,0.00032876,19]
[405995488,1771513848455,-2878.51,0.00032876,19]
[405995489,1771513848464,-500.0,0.00032876,19]
[405995490,1771513848474,-500.0,0.00032876,19]
[405995491,1771513848483,-1866.49,0.00032876,120]
[405995492,1771513848492,-433.39117531,0.00032876,19]
[405995493,1771513848502,-350.20639016,0.00032876,19]
[405995494,1771513848511,-500.0,0.00032876,19]
[405995495,1771513848520,-189.03875229,0.00032876,19]
[405995496,1771513848530,-611.56035206,0.00032876,19]
[405995497,1771513848540,-500.0,0.00032876,19]
[405995498,1771513848551,-157.80644943,0.00032876,19]
[405995499,1771513848561,-500.0,0.00032876,19]
[405995500,1771513848570,-643.2239023,0.00032876,19]
[405995501,1771513848580,-500.0,0.00032876,19]
[405995502,1771513848590,-500.0,0.00032876,19]
[405995503,1771513848600,-500.0,0.00032876,19]
[405995504,1771513848610,-642.45091318,0.00032876,19]
[405995505,1771513848620,-411.20569065,0.00032876,19]
[405995506,1771513848630,-500.0,0.00032876,19]
[405995507,1771513848640,-500.0,0.00032876,19]
[405995508,1771513848650,-500.0,0.00032876,19]
[405995509,1771513848660,-500.0,0.00032876,19]
[405995510,1771513848670,-500.0,0.00032876,19]
[405995511,1771513848679,-447.15872299,0.00032876,19]
[405995512,1771513848688,-500.0,0.00032876,19]
[405995513,1771513848698,-500.0,0.00032876,19]
[405995514,1771513848708,-1043.65,0.00032876,19]
[405995515,1771513848718,-500.0,0.00032876,19]
[405995516,1771513848727,-818.31,0.00032876,19]
[405995517,1771513848736,-5008.63,0.00032876,19]
[405995518,1771513848746,-500.0,0.00032876,19]
[405995519,1771513848756,-454.42826683,0.00032876,19]
[405995520,1771513848767,-398.8893957,0.00032876,19]
[405995521,1771513848776,-340.97159114,0.00032876,19]
[405995522,1771513848786,-1438.91,0.00032876,19]
[405995523,1771513848797,-500.0,0.00032876,19]
[405995524,1771513848806,-906.95,0.00032876,19]
[405995525,1771513848816,-543.51957475,0.00032876,12]
[405995526,1771513848826,-500.0,0.00032876,19]
[405995527,1771513848836,-500.35,0.00032876,2]
[405995528,1771513848845,-686.13,0.00032876,19]
[405995529,1771513848855,-964.82,0.00032876,19]
[405995530,1771513848865,-500.0,0.00032876,19]
[405995531,1771513848874,-500.0,0.00032876,19]
[405995532,1771513848884,-500.0,0.00032876,19]
[405995533,1771513848893,-159.10698544,0.00032876,19]
[405995534,1771513848903,-500.0,0.00032876,19]
[405995535,1771513848913,-274.00003833,0.00032876,19]
[405995536,1771513848923,-797.79,0.00032876,19]
[405995537,1771513848932,-500.0,0.00032876,19]
[405995538,1771513848942,-817.63102371,0.00032876,7]
[405995539,1771513848952,-500.0,0.00032876,19]
[405995540,1771513848962,-500.0,0.00032876,19]
[405995541,1771513848973,-500.0,0.00032876,19]
[405995542,1771513848984,-155.39946215,0.00032876,19]
[405995543,1771513848993,-20558.68,0.00032877,10]
[405995544,1771513849003,-23275.58,0.00032877,10]
[405995545,1771513849018,-19396.31,0.00032877,10]
[405995546,1771513849030,-27640.11,0.000329,14]
[405995547,1771513849040,-784.0,0.00033,2]
[405995548,1771513849050,-500.0,0.0003304,12]
[405995549,1771513849060,-635.0,0.00033066,2]
[405995550,1771513849070,-235.698,0.00033066,2]
[405995551,1771513849080,-1000.0,0.0003315,19]
[405995552,1771513849090,-931.50194543,0.0003315,120]
[405995553,1771513849101,-500.0,0.0003315,19]
[405995554,1771513849111,-500.0,0.0003315,19]
[405995555,1771513849121,-739.72,0.0003315,19]
[405995556,1771513849130,-503.55826467,0.0003315,19]
[405995557,1771513849140,-500.0,0.0003315,19]
[405995558,1771513849149,-501.33625298,0.0003315,19]
[405995559,1771513849158,-500.40876136,0.0003315,19]
[405995560,1771513849167,-500.0,0.0003315,19]
[405995561,1771513849177,-500.0,0.0003315,19]
[405995562,1771513849187,-365.42101646,0.0003315,19]
[405995563,1771513849196,-500.0,0.0003315,19]
[405995564,1771513849206,-500.0,0.0003315,19]
[405995565,1771513849217,-500.0,0.0003315,19]
[405995566,1771513849227,-500.0,0.0003315,19]
[405995567,1771513849236,-500.0,0.0003315,19]
[405995568,1771513849246,-617.43,0.0003315,19]
[405995569,1771513849256,-1590.52,0.0003315,19]
[405995570,1771513849266,-500.0,0.0003315,19]
[405995571,1771513849370,-500.0,0.0003315,19]
[405995572,1771513849381,-500.0,0.0003315,19]
[405995573,1771513849391,-500.0,0.0003315,19]
[405995574,1771513849400,-500.0,0.0003315,19]
[405995575,1771513849410,-500.0,0.0003315,12]
[405995576,1771513849419,-227.63683655,0.0003315,19]
[405995577,1771513849430,-351.67326154,0.0003315,7]
[405995578,1771513849439,-500.0,0.0003315,19]
[405995579,1771513849448,-500.0,0.0003315,19]
[405995580,1771513849457,-500.0,0.0003315,19]
[405995581,1771513849466,-500.0,0.0003315,19]
[405995582,1771513849476,-500.0,0.0003315,19]
[405995583,1771513849485,-500.0,0.0003315,19]
[405995584,1771513849495,-500.0,0.0003315,19]
[405995585,1771513849506,-500.0,0.0003315,19]
[405995586,1771513849515,-500.0,0.0003315,19]
[405995587,1771513849525,-1630.26,0.0003315,7]
[405995588,1771513849534,-500.0,0.0003315,19]
[405995589,1771513849544,-500.0,0.0003315,19]
[405995590,1771513849554,-216.64516222,0.0003315,19]
[405995591,1771513849565,-24584.14,0.0003315,19]
[405995592,1771513849575,-500.0,0.0003315,19]
[405995593,1771513849586,-500.0,0.0003315,19]
[405995594,1771513849595,-500.0,0.0003315,19]
[405995595,1771513849604,-1543.16,0.0003315,19]
[405995596,1771513849614,-560.56,0.0003315,19]
[405995597,1771513849623,-500.0,0.0003315,19]
[405995598,1771513849634,-725.24,0.0003315,19]
[405995599,1771513849644,-500.0,0.0003315,19]
[405995600,1771513849654,-191.37932118,0.0003315,19]
[405995601,1771513849663,-500.0,0.0003315,19]
[405995602,1771513849675,-500.0,0.0003315,19]
[405995603,1771513849684,-500.0,0.0003315,19]
[405995604,1771513849694,-500.0,0.0003315,19]
[405995605,1771513849704,-500.86125314,0.0003315,19]
[405995606,1771513849714,-500.0,0.0003315,19]
[405995607,1771513849724,-514.35159354,0.0003315,19]
[405995608,1771513849734,-2878.51,0.0003315,19]
[405995609,1771513849744,-500.0,0.0003315,19]
[405995610,1771513849754,-455.7834675,0.0003315,19]
[405995611,1771513849764,-533.49939883,0.0003315,19]
[405995612,1771513849775,-493.81228865,0.0003315,19]
[405995613,1771513849786,-500.0,0.0003315,19]
[405995614,1771513849796,-500.0,0.0003315,19]
[405995615,1771513849806,-331.14920187,0.0003315,19]
[405995616,1771513849817,-500.0,0.0003315,19]
[405995617,1771513849827,-370.70039642,0.0003315,19]
[405995618,1771513849841,-500.0,0.0003315,19]
[405995619,1771513849850,-270.12023795,0.0003315,19]
[405995620,1771513849860,-283.98545727,0.0003315,19]
[405995621,1771513849870,-500.0,0.0003315,19]
[405995622,1771513849880,-1043.65,0.0003315,19]
[405995623,1771513849889,-500.0,0.0003315,19]
[405995624,1771513849899,-818.31,0.0003315,19]
[405995625,1771513849908,-5008.63,0.0003315,19]
[405995626,1771513849918,-500.0,0.0003315,19]
[405995627,1771513849929,-1438.91,0.0003315,19]
[405995628,1771513849940,-500.0,0.0003315,19]
[405995629,1771513849949,-906.95,0.0003315,19]
[405995630,1771513849959,-335.48397813,0.0003315,19]
[405995631,1771513849969,-500.35,0.0003315,2]
[405995632,1771513849979,-686.13,0.0003315,19]
[405995633,1771513849989,-964.82,0.0003315,19]
[405995634,1771513849999,-500.0,0.0003315,19]
[405995635,1771513850009,-500.0,0.0003315,19]
[405995636,1771513850019,-500.0,0.0003315,19]
[405995637,1771513850028,-797.79,0.0003315,19]
[405995638,1771513850039,-500.0,0.0003315,19]
[405995639,1771513850048,-500.0,0.0003315,19]
[405995640,1771513850058,-500.0,0.0003315,19]
[405995641,1771513850069,-500.0,0.0003315,19]
[405995642,1771513850080,-175.37419395,0.000332,117]
[405995643,1771513850089,-175.37419393,0.000332,117]
[405995644,1771513850099,-27640.11,0.000334,14]
[405995645,1771513850108,-500.0,0.00033424,19]
[405995646,1771513850118,-500.0,0.00033424,19]
[405995647,1771513850128,-739.72,0.00033424,19]
[405995648,1771513850137,-500.0,0.00033424,19]
[405995649,1771513850146,-500.0,0.00033424,19]
[405995650,1771513850155,-500.0,0.00033424,19]
[405995651,1771513850164,-500.0,0.00033424,19]
[405995652,1771513850174,-267.528704,0.00033424,19]
[405995653,1771513850183,-500.0,0.00033424,19]
[405995654,1771513850192,-500.0,0.00033424,19]
[405995655,1771513850201,-500.0,0.00033424,19]
[405995656,1771513850212,-617.43,0.00033424,19]
[405995657,1771513850221,-1590.52,0.00033424,19]
[405995658,1771513850231,-500.0,0.00033424,19]
[405995659,1771513850242,-500.0,0.00033424,19]
[405995660,1771513850251,-500.0,0.00033424,19]
[405995661,1771513850261,-500.0,0.00033424,19]
[405995662,1771513850272,-500.0,0.00033424,19]
[405995663,1771513850281,-500.0,0.00033424,12]
[405995664,1771513850291,-500.0,0.00033424,19]
[405995665,1771513850300,-500.0,0.00033424,19]
[405995666,1771513850309,-500.0,0.00033424,19]
[405995667,1771513850318,-500.0,0.00033424,19]
[405995668,1771513850327,-500.0,0.00033424,19]
[405995669,1771513850340,-500.0,0.00033424,19]
[405995670,1771513850350,-500.0,0.00033424,19]
[405995671,1771513850361,-500.0,0.00033424,19]
[405995672,1771513850372,-500.0,0.00033424,19]
[405995673,1771513850382,-1630.26,0.00033424,7]
[405995674,1771513850391,-500.0,0.00033424,19]
[405995675,1771513850402,-500.0,0.00033424,19]
[405995676,1771513850411,-24584.14,0.00033424,19]
[405995677,1771513850421,-500.0,0.00033424,19]
[405995678,1771513850432,-500.0,0.00033424,19]
[405995679,1771513850444,-496.65570917,0.00033424,19]
[405995680,1771513850456,-1543.16,0.00033424,19]
[405995681,1771513850469,-560.56,0.00033424,19]
[405995682,1771513850480,-500.0,0.00033424,19]
[405995683,1771513850491,-725.24,0.00033424,19]
[405995684,1771513850501,-500.0,0.00033424,19]
[405995685,1771513850511,-500.0,0.00033424,19]
[405995686,1771513850520,-500.0,0.00033424,19]
[405995687,1771513850530,-500.0,0.00033424,19]
[405995688,1771513850540,-500.0,0.00033424,19]